bitfinex-derivatives/quotes_ETHF0:USTF0_20241005
["timestamp","ask_amount","ask_price","bid_price","bid_amount"]
[1728102802578,0.29095,2405.8,2405.6,0.3974]
[1728102804680,0.29095,2405.8,2405.6,0.68836]
[1728102805485,0.29095,2405.8,2405.6,0.3974]
[1728102806985,4.17571213,2406.0,2405.6,0.3974]
[1728102807288,0.3979,2406.0,2405.8,0.29094]
[1728102807684,0.3979,2406.0,2405.9,0.4]
[1728102807884,0.68882,2406.0,2405.9,0.4]
[1728102808789,4.0611,2406.1,2405.9,0.69093]
[1728102808790,3.2078,2406.1,2405.9,0.69093]
[1728102808980,3.2078,2406.1,2405.9,0.8136]
[1728102809179,3.49871,2406.1,2405.9,1.10453]
[1728102809386,3.49871,2406.1,2405.9,0.8136]
[1728102811493,3.49871,2406.1,2405.9,1.10453]
[1728102811689,0.29092,2406.0,2405.9,0.8136]
[1728102812492,3.49872,2406.1,2405.9,0.8136]
[1728102813889,0.29092,2406.1,2405.9,0.8136]
[1728102814102,5.00371213,2406.3,2405.9,0.8136]
[1728102814395,0.29092,2406.0,2405.9,0.8136]
[1728102816283,0.68092,2406.0,2405.9,0.8136]
[1728102816893,0.29096,2405.7,2405.6,1.2894]
[1728102817094,0.29096,2405.7,2405.6,0.892]
[1728102817987,0.29096,2405.7,2405.5,1.2964]
[1728102818193,0.29096,2405.7,2405.5,1.58738]
[1728102818796,1.14434,2405.9,2405.6,1.34096]
[1728102819096,0.29094,2405.8,2405.6,1.05]
[1728102822595,1.14434,2405.9,2405.6,1.05]
[1728102822797,0.29094,2405.8,2405.6,1.34096]
[1728102824595,0.8534,2405.9,2405.7,1.05]
[1728102824789,0.8534,2405.9,2405.8,0.4118]
[1728102827391,1.14433,2405.9,2405.8,0.4118]
[1728102828000,0.8534,2405.9,2405.8,0.4118]
[1728102829595,0.39,2406.0,2405.8,0.70274]
[1728102829798,0.39,2406.0,2405.8,1.10414]
[1728102830000,0.68092,2406.0,2405.8,1.10414]
[1728102832097,0.29095,2405.8,2405.5,3.2078]
[1728102832398,4.6478,2406.0,2405.6,0.68617]
[1728102832603,0.4111,2405.8,2405.6,0.68617]
[1728102833000,0.7998,2405.8,2405.7,0.29096]
[1728102835198,0.4111,2405.8,2405.7,0.29096]
[1728102835497,0.39,2406.0,2405.7,0.52175408]
[1728102835807,0.39,2406.0,2405.9,0.29093]
[1728102836107,0.39,2406.0,2405.6,1.4452]
[1728102836399,0.39,2406.0,2405.8,0.29094]
[1728102836704,0.39,2406.0,2405.9,0.29093]
[1728102837001,3.56781213,2406.1,2405.9,0.29093]
[1728102837393,3.56781213,2406.1,2406.0,0.4138]
[1728102837601,3.85872213,2406.1,2406.0,0.4138]
[1728102838500,3.85643327,2406.1,2406.0,0.4138]
[1728102838909,1.13091,2406.1,2406.0,0.4138]
[1728102839699,1.13091,2406.1,2405.9,0.4011]
[1728102839700,0.29092,2406.0,2405.9,0.4011]
[1728102839905,3.01660298,2406.0,2405.9,1.48899009]
[1728102841202,2.72568298,2406.0,2405.9,1.77992009]
[1728102841415,3.01660298,2406.0,2405.9,1.4891673]
[1728102841910,2.72568298,2406.0,2405.9,1.7800973]
[1728102842408,3.01660298,2406.0,2405.9,1.4891673]
[1728102842909,2.72568298,2406.0,2405.9,1.7800973]
[1728102843610,2.72568298,2406.0,2405.9,1.4891673]
[1728102843912,3.01660298,2406.0,2405.9,1.4891673]
[1728102844203,3.01660298,2406.0,2405.9,1.0880673]
[1728102844607,2.72568298,2406.0,2405.9,1.0880673]
[1728102844803,2.72568298,2406.0,2405.8,1.11074]
[1728102845012,2.72568298,2406.0,2405.9,0.52253393]
[1728102845204,2.72568298,2406.0,2405.9,1.08835112]
[1728102845708,3.56568298,2406.1,2406.0,0.29092]
[1728102846008,3.56568298,2406.1,2406.0,1.37927112]
[1728102847109,3.56568298,2406.1,2406.0,1.08835112]
[1728102847311,2.72568298,2406.1,2406.0,1.37927112]
[1728102847510,3.41758298,2406.2,2406.0,1.08835112]
[1728102847706,3.41758298,2406.2,2406.1,1.08835112]
[1728102847907,3.41758298,2406.2,2406.0,0.29092]
[1728102848109,3.01658298,2406.2,2406.1,0.52228065]
[1728102848314,3.01658298,2406.2,2406.1,1.2102]
[1728102848517,3.01658298,2406.2,2406.1,1.73243491]
[1728102849015,3.01658298,2406.2,2406.1,2.29794135]
[1728102849209,3.01658298,2406.2,2406.1,1.73243491]
[1728102849806,3.01658298,2406.2,2406.1,1.31833491]
[1728102850011,3.01658298,2406.2,2406.1,0.3916]
[1728102851408,0.2909,2406.2,2406.1,0.3916]
[1728102851810,3.0162423,2406.2,2406.1,0.3916]
[1728102852012,2.7253423,2406.2,2405.9,2.16733]
[1728102852204,0.71201,2406.1,2406.0,1.48603046]
[1728102853011,3.4373523,2406.1,2406.0,1.48603046]
[1728102853221,3.4373523,2406.1,2406.0,0.92053498]
[1728102853426,0.71201,2406.1,2406.0,1.48596183]
[1728102854815,0.4211,2406.1,2406.0,1.48596183]
[1728102855519,3.0162423,2406.2,2406.0,1.48596183]
[1728102855714,3.0162423,2406.2,2406.0,0.3983]
[1728102857011,2.7253423,2406.2,2406.0,0.3983]
[1728102857213,0.2909,2406.2,2406.1,1.08727408]
[1728102857811,0.2909,2406.2,2406.1,0.52205644]
[1728102858710,2.7253423,2406.3,2406.1,0.52205644]
[1728102858915,2.7253423,2406.3,2406.2,1.5719035]
[1728102859111,0.8156,2406.4,2406.2,2.13702888]
[1728102859311,0.8156,2406.4,2406.2,0.29089]
[1728102859620,0.8156,2406.4,2406.3,0.3932]
[1728102866523,0.8156,2406.4,2406.3,0.68408]
[1728102866822,0.8156,2406.4,2406.3,0.3932]
[1728102868125,3.1378423,2406.6,2406.3,0.3932]
[1728102868320,0.70335,2406.6,2406.3,0.68408]
[1728102868521,0.70335,2406.6,2406.4,1.05]
[1728102868522,0.29086,2406.5,2406.4,1.05]
[1728102869828,0.4125,2406.6,2406.4,1.05]
[1728102870131,0.70336,2406.6,2406.4,1.34087]
[1728102870323,0.70336,2406.6,2406.4,1.05]
[1728102871330,0.29086,2406.5,2406.4,1.05]
[1728102871623,0.4125,2406.6,2406.4,1.05]
[1728102871828,0.70336,2406.6,2406.4,1.05]
[1728102872223,0.70336,2406.6,2406.4,1.34087]
[1728102872730,0.4125,2406.6,2406.4,1.05]
[1728102872933,0.70335,2406.6,2406.4,1.05]
[1728102873133,6.7077423,2406.7,2406.5,1.05]
[1728102873134,3.9824,2406.7,2406.5,1.05]
[1728102873324,2.7253423,2406.8,2406.6,1.76685]
[1728102873325,0.68433,2406.8,2406.6,1.76685]
[1728102873526,0.68433,2406.8,2406.6,1.476]
[1728102873923,0.68433,2406.8,2406.6,1.76685]
[1728102874630,0.29082,2406.9,2406.6,1.76684]
[1728102874835,0.29081,2406.9,2406.8,1.05]
[1728102875324,2.7253423,2407.1,2406.8,8.413]
[1728102875636,0.29076,2407.3,2406.9,1.05]
[1728102875926,0.29076,2407.3,2406.8,4.2578]
[1728102875927,1.05,2407.3,2406.8,4.2578]
[1728102876132,4.5022823,2407.3,2406.8,3.2078]
[1728102876433,4.5022823,2407.3,2406.4,0.097]
[1728102876434,0.29086,2406.5,2406.4,0.097]
[1728102876625,0.29088,2406.3,2406.2,0.4282]
[1728102877932,1.2006,2406.4,2406.2,0.4282]
[1728102878120,1.49148,2406.4,2406.2,0.4282]
[1728102878326,0.29088,2406.3,2406.2,0.4282]
[1728102879024,1.2006,2406.4,2406.2,0.4282]
[1728102879224,1.49148,2406.4,2406.2,0.4282]
[1728102879828,0.29088,2406.3,2406.2,0.4282]
[1728102880135,0.29093,2406.0,2405.8,4.39249225]
[1728102880430,3.2078,2406.3,2405.8,4.39249225]
[1728102880431,0.2909,2406.2,2405.8,4.5068]
[1728102880733,0.2909,2406.2,2405.9,1.34093]
[1728102881934,0.2909,2406.2,2405.9,2.23493]
[1728102883329,0.2909,2406.2,2405.9,1.944]
[1728102883535,0.2909,2406.2,2406.0,0.29092]
[1728102883738,0.2909,2406.2,2406.0,0.69482]
[1728102883935,0.2909,2406.2,2406.1,0.4222]
[1728102884732,8.1837423,2406.4,2406.1,0.4222]
[1728102885038,0.29089,2406.3,2406.1,0.4222]
[1728102887536,0.29089,2406.3,2406.1,1.4722]
[1728102888040,7.4246223,2406.4,2406.1,1.76311]
[1728102888237,4.4084,2406.4,2406.1,1.4722]
[1728102888440,0.29088,2406.3,2406.1,1.4722]
[1728102888635,7.1337423,2406.4,2406.1,1.4722]
[1728102888945,4.69928,2406.4,2406.1,1.76311]
[1728102889441,7.4246223,2406.4,2406.1,1.76311]
[1728102891443,0.29088,2406.3,2406.1,1.4722]
[1728102891946,0.29088,2406.3,2406.1,1.76311]
[1728102892842,7.4246223,2406.4,2406.1,1.76311]
[1728102893640,0.29089,2406.3,2406.1,1.76311]
[1728102894640,0.29089,2406.3,2406.1,1.4722]
[1728102895247,0.29089,2406.3,2406.1,1.7631]
[1728102896539,7.1337423,2406.4,2406.1,0.4222]
[1728102896751,0.29092,2406.0,2405.8,1.19294]
[1728102896941,0.29092,2406.0,2405.9,0.409]
[1728102897644,1.49701,2406.1,2405.9,0.409]
[1728102898054,0.29092,2406.0,2405.9,0.409]
[1728102898951,1.2061,2406.1,2405.9,0.409]
[1728102899148,0.29092,2406.0,2405.9,0.409]
[1728102901452,1.2061,2406.1,2405.9,0.409]
[1728102901653,2.2561,2406.1,2405.7,1.8657]
[1728102901949,0.29095,2405.8,2405.6,1.2984]
[1728102902245,0.29094,2405.9,2405.6,1.58936]
[1728102902648,0.29094,2405.8,2405.6,1.2984]
[1728102902849,0.29094,2405.9,2405.6,1.58937]
[1728102903747,0.29094,2405.9,2405.6,0.3964]
[1728102904047,0.29096,2405.7,2405.6,0.3964]
[1728102904455,0.70446,2405.7,2405.6,0.3964]
[1728102906653,0.4135,2405.7,2405.5,1.09098]
[1728102906858,0.4135,2405.7,2405.6,0.3995]
[1728102908957,1.12175,2405.8,2405.6,0.3995]
[1728102909256,0.8308,2405.8,2405.6,0.69046]
[1728102909955,0.8308,2405.8,2405.6,0.3995]
[1728102910146,1.12175,2405.8,2405.6,0.3995]
[1728102912149,0.8308,2405.8,2405.6,0.69046]
[1728102912351,1.12175,2405.8,2405.6,0.3995]
[1728102912650,0.8308,2405.8,2405.6,0.69046]
[1728102913457,1.12174,2405.8,2405.6,0.3995]
[1728102914158,0.8308,2405.8,2405.6,0.69047]
[1728102914852,3.92224,2405.9,2405.7,1.05]
[1728102915056,0.4235,2405.9,2405.7,1.34095]
[1728102915259,0.4235,2405.9,2405.8,0.819]
[1728102916254,0.71443,2405.9,2405.8,0.819]
[1728102916465,0.4235,2405.9,2405.8,0.819]
[1728102916959,1.10691,2406.1,2405.8,1.10994]
[1728102917255,1.10691,2406.1,2405.8,2.15994]
[1728102917462,1.10691,2406.1,2405.9,0.4005]
[1728102918663,0.29092,2406.0,2405.9,0.4005]
[1728102923075,0.816,2406.1,2405.9,0.4005]
[1728102923274,0.29092,2406.0,2405.9,0.4005]
[1728102925975,3.8322523,2406.1,2405.9,0.4005]
[1728102926370,0.29092,2406.0,2405.9,0.4005]
[1728102927273,3.0162623,2406.0,2405.9,0.4005]
[1728102928178,2.7253423,2406.0,2405.9,0.4005]
[1728102928671,3.0162623,2406.0,2405.9,0.4005]
[1728102929268,0.29092,2406.0,2405.9,0.4005]
[1728102929875,3.0162623,2406.0,2405.9,0.4005]
[1728102937283,2.7253423,2406.0,2405.9,0.4005]
[1728102937577,4.31471,2406.1,2405.9,1.74143]
[1728102937578,5.9331423,2406.1,2405.9,1.74143]
[1728102937777,3.49871,2406.1,2405.9,1.74143]
[1728102937975,0.29091,2406.1,2405.9,1.74143]
[1728102938684,0.29091,2406.1,2405.9,1.4505]
[1728102940482,3.0162523,2406.1,2405.9,1.4505]
[1728102940685,3.0162523,2406.1,2405.9,0.4005]
[1728102941484,2.7253423,2406.1,2405.9,0.4005]
[1728102941684,0.29092,2406.0,2405.9,0.4005]
[1728102942481,3.0162623,2406.0,2405.9,0.4005]
[1728102944585,0.4051,2406.0,2405.9,0.4005]
[1728102944791,0.4051,2406.0,2405.9,0.92279975]
[1728102945090,3.1304423,2406.0,2405.9,0.4005]
[1728102945291,3.1304423,2406.0,2405.9,0.92280504]
[1728102947384,0.4051,2406.0,2405.9,1.21373504]
[1728102947888,3.1304423,2406.0,2405.9,1.21373504]
[1728102948085,3.1304423,2406.0,2405.9,0.69143]
[1728102948284,3.1304423,2406.0,2405.9,1.21373609]
[1728102948485,0.4051,2406.0,2405.9,0.69143]
[1728102948683,0.4051,2406.0,2405.9,1.21372658]
[1728102948986,0.4051,2406.0,2405.9,1.7360233]
[1728102949492,3.1304423,2406.0,2405.9,1.4450933]
[1728102949696,0.69602,2406.0,2405.9,1.4450933]
[1728102950289,0.4051,2406.0,2405.9,1.4450933]
[1728102950593,3.1304423,2406.0,2405.9,1.4450933]
[1728102951885,3.1304423,2406.0,2405.9,1.73607964]
[1728102952998,2.7253423,2406.1,2405.9,3.06072929]
[1728102953297,5.9331423,2406.3,2406.2,0.2909]
[1728102953487,3.2078,2406.3,2406.2,0.81325292]
[1728102954091,3.2078,2406.3,2406.2,1.21555292]
[1728102954789,3.2078,2406.3,2406.2,0.6932]
[1728102954997,3.2078,2406.3,2406.2,0.92439372]
[1728102955185,3.2078,2406.3,2406.2,0.92441438]
[1728102955186,3.49868,2406.3,2406.2,0.92441438]
[1728102955490,3.49868,2406.3,2406.2,0.4023]
[1728102955697,6.2240223,2406.3,2406.2,0.4023]
[1728102955889,3.49868,2406.3,2406.2,0.4023]
[1728102956596,0.29088,2406.3,2406.2,0.4023]
[1728102957992,0.70278,2406.3,2406.2,0.4023]
[1728102959499,0.4119,2406.3,2406.2,0.4023]
[1728102959700,0.70278,2406.3,2406.2,0.4023]
[1728102960995,0.4119,2406.3,2406.2,0.6932]
[1728102961693,0.4119,2406.3,2406.2,0.4023]
[1728102961894,0.4119,2406.3,2406.2,0.6932]
[1728102963000,3.8329223,2406.4,2406.2,0.6932]
[1728102963297,3.8329123,2406.4,2406.2,0.6932]
[1728102963499,3.0162123,2406.4,2406.2,0.6932]
[1728102964102,2.7253423,2406.4,2406.2,0.69319]
[1728102964400,3.0162123,2406.4,2406.2,0.69319]
[1728102964594,0.29087,2406.4,2406.2,0.69319]
[1728102964993,3.0162123,2406.4,2406.2,0.69319]
[1728102965701,0.29087,2406.4,2406.2,0.69319]
[1728102965896,5.9331423,2406.5,2406.2,1.4523]
[1728102966201,3.2078,2406.5,2406.3,1.05]
[1728102966399,3.49866,2406.5,2406.4,0.8101]
[1728102967003,3.2078,2406.5,2406.4,0.8101]
[1728102968291,3.49866,2406.5,2406.4,0.8101]
[1728102968794,3.2078,2406.5,2406.4,4.9653]
[1728102968998,3.49866,2406.5,2406.4,4.9653]
[1728102970021,0.29086,2406.5,2406.4,4.9653]
[1728102970201,3.49866,2406.5,2406.4,4.9653]
[1728102970609,0.29086,2406.5,2406.4,4.9653]
[1728102973507,0.8211,2406.7,2406.4,4.9653]
[1728102973803,1.11194,2406.7,2406.6,1.05]
[1728102976207,3.2078,2406.8,2406.7,0.29084]
[1728102976513,3.2078,2406.8,2406.7,1.8857]
[1728102976702,3.49862,2406.8,2406.7,1.8857]
[1728102978102,0.29082,2406.8,2406.7,1.8857]
[1728102978507,0.29082,2406.9,2406.7,1.8857]
[1728102978703,0.4228,2407.0,2406.7,1.8857]
[1728102978902,0.29081,2406.9,2406.8,0.427]
[1728102980415,0.4228,2407.0,2406.8,0.427]
[1728102980806,0.29081,2406.9,2406.8,1.477]
[1728102981607,1.13509,2407.1,2406.8,1.76781]
[1728102981809,9.69216944,2407.2,2407.0,1.05]
[1728102982005,6.09036944,2407.2,2407.1,0.67829]
[1728102982208,6.09036944,2407.2,2407.1,1.50979]
[1728102984119,6.09036944,2407.2,2407.1,0.3875]
[1728102984312,0.29081,2407.0,2406.8,1.96]
[1728102984508,0.3869,2406.9,2406.8,1.96]
[1728102984823,1.2167,2406.9,2406.8,1.96]
[1728102985206,1.2167,2406.9,2406.8,2.25082]
[1728102985404,1.2167,2406.9,2406.7,0.4211]
[1728102985621,1.50751,2406.9,2406.7,1.62193]
[1728102985820,1.50751,2406.9,2406.7,2.67193]
[1728102986017,1.2167,2406.9,2406.7,2.67193]
[1728102986924,1.2167,2406.9,2406.7,2.3811]
[1728102987127,1.50752,2406.9,2406.7,2.3811]
[1728102987715,1.2167,2406.9,2406.7,2.67193]
[1728102990626,1.2167,2406.9,2406.7,1.76193]
[1728102990823,1.2167,2406.9,2406.8,0.29082]
[1728102991020,0.8125,2406.9,2406.8,1.34082]
[1728102991321,0.29079,2407.1,2406.8,1.34082]
[1728102991322,0.68059,2407.1,2406.8,1.34082]
[1728102991526,1.204,2407.1,2406.8,1.05]
[1728102991819,0.2908,2407.0,2406.8,1.34082]
[1728102992119,1.204,2407.1,2406.8,1.34082]
[1728102992515,1.49479,2407.1,2406.8,1.34082]
[1728102992922,0.29081,2407.0,2406.8,1.05]
[1728102993620,2.254,2407.1,2406.4,4.38101955]
[1728102993827,0.29083,2406.8,2406.6,1.05]
[1728102994021,0.29081,2406.9,2406.6,1.05]
[1728102994229,0.68523,2406.8,2406.6,1.4554]
[1728102994431,0.29084,2406.7,2406.6,1.4554]
[1728102994625,0.3944,2406.8,2406.6,1.4554]
[1728102994822,0.67864,2406.7,2406.6,1.4554]
[1728102996830,0.3878,2406.7,2406.6,1.4554]
[1728102998718,0.3893,2406.9,2406.6,1.4554]
[1728102998923,0.3893,2406.9,2406.7,1.75073]
[1728102999126,3.6283,2407.0,2406.7,1.4599]
[1728102999329,3.2078,2407.0,2406.9,1.34081]
[1728103002434,3.2078,2407.0,2406.9,5.49521]
[1728103003824,1.18555,2407.4,2407.2,0.29077]
[1728103004031,0.4108,2407.4,2407.3,1.05]
[1728103004234,0.4108,2407.4,2407.3,1.4429]
[1728103005635,0.70155,2407.4,2407.3,1.4429]
[1728103007333,0.4108,2407.4,2407.3,1.4429]
[1728103007545,0.4108,2407.4,2407.3,1.73366]
[1728103008032,0.4108,2407.4,2407.3,1.4429]
[1728103008435,0.4108,2407.4,2407.3,1.73366]
[1728103008636,0.4108,2407.4,2407.3,1.4429]
[1728103013233,5.9331423,2407.5,2407.3,1.4429]
[1728103013538,10.4098523,2407.8,2407.6,0.29072]
[1728103013733,10.4098523,2407.8,2407.4,1.4385]
[1728103013734,10.4098523,2407.8,2407.7,1.4709]
[1728103013932,6.2238523,2407.8,2407.7,1.4709]
[1728103016830,3.49851,2407.8,2407.7,1.4709]
[1728103019041,0.29071,2407.8,2407.7,1.4709]
[1728103023541,0.6859,2407.9,2407.7,1.76161]
[1728103023738,0.69959,2408.0,2407.8,1.4597]
[1728103024137,0.4089,2408.0,2407.8,1.4597]
[1728103024442,0.29069,2407.9,2407.8,1.4597]
[1728103026042,6.7582423,2408.1,2407.8,5.6125]
[1728103026239,0.29068,2408.0,2407.8,0.4097]
[1728103026442,7.0489123,2408.1,2408.0,1.05]
[1728103028149,1.11577,2408.1,2408.0,1.05]
[1728103028538,3.8411123,2408.1,2408.0,1.05]
[1728103028733,1.11577,2408.1,2408.0,1.05]
[1728103029839,1.11577,2408.1,2408.0,1.4484]
[1728103033544,0.29067,2408.1,2408.0,1.4484]
[1728103033745,0.8215,2408.3,2408.0,6.5132]
[1728103034050,0.8215,2408.3,2408.2,1.05]
[1728103034051,0.71074,2408.3,2408.2,1.05]
[1728103037559,0.4201,2408.3,2408.2,1.05]
[1728103040355,0.71074,2408.3,2408.2,1.05]
[1728103040750,0.4201,2408.3,2408.2,1.05]
[1728103043256,0.29064,2408.4,2408.2,1.34065]
[1728103043658,0.29064,2408.4,2408.3,0.4154]
[1728103043956,0.29063,2408.4,2408.3,0.4154]
[1728103044258,0.29063,2408.4,2408.3,0.8225]
[1728103050256,0.29062,2408.5,2408.3,1.11314]
[1728103050461,0.29062,2408.5,2408.4,1.4427]
[1728103050865,3.2078,2408.7,2408.4,1.4427]
[1728103051062,0.29061,2408.6,2408.4,0.68332]
[1728103051269,0.29061,2408.6,2408.5,1.05]
[1728103052464,0.29062,2408.5,2408.4,1.2897]
[1728103052676,0.67672,2408.5,2408.4,2.3397]
[1728103053159,0.3867,2408.6,2408.4,2.3397]
[1728103053360,0.29062,2408.5,2408.4,2.3397]
[1728103053557,0.3867,2408.6,2408.4,2.3397]
[1728103053762,0.67731,2408.6,2408.4,2.3397]
[1728103054167,0.67731,2408.6,2408.4,2.63032]
[1728103054168,0.29061,2408.6,2408.4,2.63032]
[1728103055866,3.2078,2408.7,2408.4,2.63032]
[1728103055867,3.4984,2408.7,2408.4,2.63032]
[1728103056070,3.4984,2408.7,2408.6,1.05]
[1728103057768,0.2906,2408.7,2408.6,1.05]
[1728103058162,0.2906,2408.7,2408.6,1.4556]
[1728103059263,0.68849,2408.8,2408.6,1.7462]
[1728103059469,0.68849,2408.8,2408.6,1.4556]
[1728103059470,0.29059,2408.7,2408.6,1.4556]
[1728103059667,0.29059,2408.7,2408.6,1.74621]
[1728103059971,0.29059,2408.7,2408.6,1.4556]
[1728103062362,3.0159323,2408.7,2408.6,1.4556]
[1728103065475,3.0159323,2408.7,2408.6,1.8803]
[1728103069279,0.29059,2408.7,2408.6,1.8803]
[1728103069674,3.00719825,2408.7,2408.6,1.8803]
[1728103070372,0.29059,2408.7,2408.6,1.8803]
[1728103072381,1.253,2408.8,2408.6,1.8803]
[1728103072589,0.29059,2408.8,2408.6,1.8803]
[1728103072879,0.29059,2408.8,2408.7,0.4008]
[1728103073282,6.33550587,2409.0,2408.7,0.4008]
[1728103073584,0.29058,2408.9,2408.7,0.4008]
[1728103073986,0.29058,2408.8,2408.7,0.4008]
[1728103077182,0.29058,2408.8,2408.7,1.4508]
[1728103079388,6.47743978,2409.0,2408.7,1.4508]
[1728103079576,6.76799978,2409.0,2408.9,1.05]
[1728103080481,6.76799978,2409.0,2408.7,0.69139]
[1728103080482,6.87673978,2409.0,2408.7,0.4008]
[1728103080681,0.29059,2408.7,2408.6,1.7223]
[1728103080882,3.00995192,2408.7,2408.6,2.7723]
[1728103081182,3.0100859,2408.7,2408.6,2.7723]
[1728103081390,0.29059,2408.7,2408.6,2.7723]
[1728103081687,3.01001461,2408.7,2408.6,2.7723]
[1728103083292,0.29059,2408.7,2408.6,2.7723]
[1728103083791,2.71961779,2408.7,2408.6,2.7723]
[1728103083984,2.71961779,2408.7,2408.6,0.94604185]
[1728103084193,2.71961779,2408.7,2408.4,0.892]
[1728103084194,0.29062,2408.5,2408.4,0.892]
[1728103084486,0.29062,2408.5,2408.4,3.02536178]
[1728103084891,0.29062,2408.5,2408.4,1.05]
[1728103085581,7.29013978,2408.7,2408.5,0.29062]
[1728103085582,3.82357083,2408.7,2408.5,0.29062]
[1728103085894,0.6977,2408.7,2408.6,1.4783]
[1728103086083,3.41797083,2408.7,2408.6,1.4783]
[1728103086883,0.6977,2408.7,2408.6,1.4783]
[1728103087087,0.6977,2408.7,2408.6,1.8754]
[1728103088189,3.41797083,2408.7,2408.6,1.8754]
[1728103092002,2.72027083,2408.7,2408.6,6.0274]
[1728103092204,2.7214847,2409.0,2408.9,0.29057]
[1728103092392,0.29055,2409.1,2408.9,1.05]
[1728103092703,0.71875,2409.1,2408.9,1.34057]
[1728103092895,0.71875,2409.1,2409.0,0.3922]
[1728103093096,0.4282,2409.1,2409.0,0.3922]
[1728103093599,0.8151,2409.1,2409.0,0.3922]
[1728103094016,1.10565,2409.1,2409.0,0.3922]
[1728103094297,0.8151,2409.1,2409.0,0.3922]
[1728103095092,0.8151,2409.1,2409.0,0.68276]
[1728103095702,0.69524,2409.2,2409.0,0.68276]
[1728103095905,0.69524,2409.2,2409.1,1.05]
[1728103096101,3.2078,2409.4,2409.3,0.29052]
[1728103096294,3.2078,2409.4,2409.3,1.34052]
[1728103098403,3.2078,2409.4,2409.3,5.49092]
[1728103098908,3.2078,2409.4,2409.3,6.38292]
[1728103100000,0.8967,2409.7,2409.3,6.0924]
[1728103100202,3.49829,2409.6,2409.5,1.05]
[1728103101104,3.49829,2409.6,2408.8,1.147]
[1728103101105,0.29057,2408.9,2408.8,1.147]
[1728103101305,0.29057,2408.9,2408.5,3.2078]
[1728103101306,3.2078,2409.0,2408.5,0.3858]
[1728103101506,0.29058,2408.8,2408.7,1.05]
[1728103102003,3.54982182,2408.8,2408.7,1.05]
[1728103103612,3.54982182,2408.8,2408.7,2.27]
[1728103107824,0.29058,2408.8,2408.7,2.27]
[1728103114318,0.29061,2408.6,2408.5,0.4083]
[1728103114626,3.49841,2408.6,2408.5,0.4083]
[1728103120024,0.29061,2408.6,2408.5,0.4083]
[1728103121518,0.29063,2408.4,2408.3,0.3858]
[1728103125532,0.29063,2408.4,2408.3,1.4358]
[1728103134135,0.29063,2408.4,2408.3,0.3858]
[1728103137533,0.29063,2408.4,2408.3,1.4358]
[1728103141351,3.2078,2408.5,2408.3,1.4358]
[1728103141646,3.49842,2408.5,2408.4,1.05]
[1728103143542,3.2078,2408.5,2408.4,1.05]
[1728103144550,3.49842,2408.5,2408.4,1.05]
[1728103145946,0.29063,2408.4,2408.3,2.3368]
[1728103146250,3.49842,2408.5,2408.3,2.3368]
[1728103146446,0.29063,2408.4,2408.3,2.3368]
[1728103146647,0.29063,2408.4,2408.3,1.4358]
[1728103146946,3.2078,2408.5,2408.3,1.4358]
[1728103146947,3.49843,2408.5,2408.3,1.4358]
[1728103147546,0.29063,2408.4,2408.3,1.4358]
[1728103148541,0.29063,2408.4,2408.3,0.3858]
[1728103153144,3.54987182,2408.4,2408.3,0.3858]
[1728103157058,0.29063,2408.4,2408.3,0.3858]
[1728103157756,0.29064,2408.3,2408.2,0.85]
[1728103157960,3.97000399,2408.3,2408.2,0.85]
[1728103158257,3.97000399,2408.3,2408.2,1.3723306]
[1728103158459,3.97000399,2408.3,2408.2,0.85]
[1728103160058,0.70264,2408.3,2408.2,0.85]
[1728103160261,0.70264,2408.3,2408.2,1.37238998]
[1728103160454,0.70264,2408.3,2408.2,0.85]
[1728103164267,0.29064,2408.3,2408.2,0.85]
[1728103166963,3.55800399,2408.3,2408.2,0.85]
[1728103168158,3.26736399,2408.3,2408.2,1.9]
[1728103168357,0.29064,2408.4,2408.2,2.46305203]
[1728103168358,3.55800399,2408.4,2408.2,2.46305203]
[1728103168558,3.55800399,2408.4,2408.3,0.5223793]
[1728103169565,0.29064,2408.4,2408.3,0.5223793]
[1728103170166,0.29064,2408.3,2408.2,1.9]
[1728103170365,3.55972259,2408.3,2408.2,1.37241776]
[1728103170663,3.95892259,2408.3,2408.2,1.37241776]
[1728103170868,0.68984,2408.3,2408.2,0.85]
[1728103171064,0.68984,2408.3,2408.2,1.37244723]
[1728103171458,3.958983,2408.3,2408.2,1.37244723]
[1728103171660,0.68984,2408.3,2408.2,0.85]
[1728103173965,4.49228879,2408.3,2408.2,0.85]
[1728103174167,0.68984,2408.3,2408.2,0.85]
[1728103174970,4.49228879,2408.3,2408.2,0.85]
[1728103175171,0.68984,2408.3,2408.2,0.85]
[1728103178180,3.89764,2408.3,2408.2,0.85]
[1728103178680,3.49844,2408.3,2408.2,0.85]
[1728103178877,3.49844,2408.3,2408.2,1.37233351]
[1728103180778,3.49844,2408.3,2408.2,0.85]
[1728103181081,3.49844,2408.3,2408.2,1.3723164]
[1728103181578,0.29064,2408.3,2408.2,1.3723164]
[1728103182080,0.29064,2408.3,2408.2,1.37229651]
[1728103183780,0.29064,2408.3,2408.2,0.85]
[1728103188788,4.2578,2408.4,2408.1,0.4086]
[1728103188980,0.29065,2408.2,2408.1,0.4086]
[1728103190082,3.55969193,2408.2,2408.1,0.4086]
[1728103190284,0.29065,2408.2,2408.1,0.4086]
[1728103190478,3.55969193,2408.2,2408.1,0.4086]
[1728103190879,3.55969193,2408.2,2408.1,0.93095961]
[1728103191791,3.55969193,2408.2,2408.1,1.49404021]
[1728103192890,0.29065,2408.2,2408.1,1.49404021]
[1728103193086,3.26904193,2408.3,2408.1,1.49404021]